[Event "FIDE Grand Swiss 2023"]
[Site "Villa Marina, Douglas, Isle of Man"]
[Date "2023.11.02"]
[Round "8.19"]
[White "Artemiev, Vladislav"]
[Black "Gledura, Benjamin"]
[Result "1/2-1/2"]
[WhiteElo "2697"]
[BlackElo "2633"]
[EventDate "2023.10.25"]
[ECO "B52"]
[PlyCount "84"]
[BlackFideId "712779"]
[TimeControl "40/100 + 20/50 + 15 + 30s/move"]
[WhiteFideId "24101605"]

1.e4 {[%clk 01:40:48][%emt 00:00:12]} 1...c5 {[%clk 01:40:33][%emt 00:00:28]} 
2.Nf3 {[%clk 01:40:53][%emt 00:00:24]} 2...d6 {[%clk 01:40:52][%emt 00:00:12]} 
3.Bb5+ {[%clk 01:36:57][%emt 00:04:25]} 3...Bd7 {[%clk 01:41:01][%emt 00:00:21]} 
4.Bxd7+ {[%clk 01:36:47][%emt 00:00:41]} 4...Nxd7 {[%clk 01:41:13][%emt
00:00:18]} 5.O-O {[%clk 01:36:07][%emt 00:01:08]} 5...e6 {[%clk 01:41:09][%emt
00:00:34]} 6.c3 {[%clk 01:27:42][%emt 00:08:55]} 6...Ngf6 {[%clk 01:41:14][%emt
00:00:27]} 7.Qe2 {[%clk 01:25:54][%emt 00:02:17]} 7...Be7 {[%clk 01:41:25][%emt
00:00:19]} 8.Rd1 {[%clk 01:21:19][%emt 00:05:04]} 8...O-O {[%clk 01:40:55][%emt
00:01:00]} 9.d4 {[%clk 01:21:18][%emt 00:00:33]} 9...cxd4 {[%clk 01:40:50][%emt
00:00:35]} 10.cxd4 {[%clk 01:21:32][%emt 00:00:15]} 10...b5 {[%clk
01:38:46][%emt 00:02:35]} 11.Bg5 {[%clk 01:01:44][%emt 00:20:18]} 11...a6 
{[%clk 01:32:13][%emt 00:07:03]} 12.a4 {[%clk 00:48:47][%emt 00:13:26]} 12...h6 
{[%clk 01:27:48][%emt 00:04:55]} 13.Bh4 {[%clk 00:46:49][%emt 00:02:28]} 
13...bxa4 {[%clk 01:03:20][%emt 00:24:59]} 14.Rxa4 {[%clk 00:45:13][%emt
00:02:05]} 14...a5 {[%clk 01:01:52][%emt 00:01:58]} 15.Nc3 {[%clk 00:42:58][%emt
00:02:45]} 15...Nb6 {[%clk 00:57:14][%emt 00:05:09]} 16.Raa1 {[%clk
00:28:53][%emt 00:14:34]} 16...a4 {[%clk 00:43:47][%emt 00:13:57]} 17.Qb5 
{[%clk 00:20:28][%emt 00:08:55]} 17...Rb8 {[%clk 00:42:54][%emt 00:01:23]} 
18.Bxf6 {[%clk 00:12:17][%emt 00:08:41]} 18...Bxf6 {[%clk 00:43:12][%emt
00:00:13]} 19.e5 {[%clk 00:11:51][%emt 00:00:56]} 19...Be7 {[%clk 00:42:11][%emt
00:01:31]} 20.Nxa4 {[%clk 00:09:05][%emt 00:03:17]} 20...Nxa4 {[%clk
00:42:00][%emt 00:00:40]} 21.Qxa4 {[%clk 00:09:29][%emt 00:00:05]} 21...Rxb2 
{[%clk 00:42:17][%emt 00:00:14]} 22.Qa7 {[%clk 00:08:55][%emt 00:01:04]} 
22...dxe5 {[%clk 00:34:34][%emt 00:08:12]} 23.dxe5 {[%clk 00:08:56][%emt
00:00:29]} 23...Qb6 {[%clk 00:34:54][%emt 00:00:11]} 24.Qxb6 {[%clk
00:09:20][%emt 00:00:06]} 24...Rxb6 {[%clk 00:35:19][%emt 00:00:05]} 25.Rab1 
{[%clk 00:08:10][%emt 00:01:39]} 25...Rxb1 {[%clk 00:35:12][%emt 00:00:37]} 
26.Rxb1 {[%clk 00:08:35][%emt 00:00:05]} 26...g5 {[%clk 00:32:14][%emt
00:03:27]} 27.h3 {[%clk 00:06:08][%emt 00:02:58]} 27...Rc8 {[%clk 00:32:07][%emt
00:00:38]} 28.g4 {[%clk 00:04:28][%emt 00:02:10]} 28...Rc2 {[%clk 00:27:34][%emt
00:05:03]} 29.Rd1 {[%clk 00:04:40][%emt 00:00:17]} 29...Bc5 {[%clk
00:25:25][%emt 00:02:40]} 30.Rd2 {[%clk 00:05:03][%emt 00:00:07]} 30...Rxd2 
{[%clk 00:25:12][%emt 00:00:42]} 31.Nxd2 {[%clk 00:05:28][%emt 00:00:05]} 
31...Kf8 {[%clk 00:25:31][%emt 00:00:12]} 32.Kg2 {[%clk 00:03:44][%emt
00:02:14]} 32...Ke7 {[%clk 00:24:57][%emt 00:01:03]} 33.Kg3 {[%clk
00:01:46][%emt 00:02:28]} 33...Kd7 {[%clk 00:17:36][%emt 00:07:51]} 34.Ne4 
{[%clk 00:01:10][%emt 00:01:06]} 34...Be7 {[%clk 00:12:05][%emt 00:06:01]} 
35.f4 {[%clk 00:01:35][%emt 00:00:05]} 35...Kc6 {[%clk 00:12:02][%emt 00:00:34]} 
36.Kf3 {[%clk 00:00:53][%emt 00:01:11]} 36...Kd5 {[%clk 00:10:51] [%emt
00:01:42]} 37.Nc3+ {[%clk 00:01:15] [%emt 00:00:07]} 37...Kc4 {[%clk
00:10:00][%emt 00:01:21]} 38.Ne4 {[%clk 00:01:38][%emt 00:00:07]} 38...Kd5 
{[%clk 00:10:51][%emt 00:01:42]} 39.Nc3+ {[%clk 00:01:15][%emt 00:00:07]} 
39...Kd4 {[%clk 00:04:40] [%emt 00:01:42]} 40.Nb5+ {[%clk 00:01:55] [%emt
00:00:37]} 40...Kc5 {[%clk 00:04:57] [%emt 00:00:12]} 41.Nc3 {[%clk
00:02:08][%emt 00:00:17]} 41...Kd4 {[%clk 00:04:40][%emt 00:01:42]} 42.Nb5+ 
{[%clk 00:01:55][%emt 00:00:37]} 42...Kc5 {[%clk 00:04:57][%emt 00:00:12]} ( 
42...Kc5 {[%clk 00:04:57][%emt 00:00:12]} 43.Ke4 {[%emt 00:00:14]} ) 1/2-1/2

[Event "FIDE Grand Swiss 2023"]
[Site "Villa Marina, Douglas, Isle of Man"]
[Date "2023.11.02"]
[Round "8.28"]
[White "Aryan, Chopra"]
[Black "Bluebaum, Matthias"]
[Result "1/2-1/2"]
[WhiteElo "2634"]
[BlackElo "2668"]
[EventDate "2023.10.25"]
[ECO "C45"]
[PlyCount "135"]
[BlackFideId "24651516"]
[TimeControl "40/100 + 20/50 + 15 + 30s/move"]
[WhiteFideId "5084423"]

1.e4 {[%clk 01:40:56][%emt 00:00:03]} 1...e5 {[%clk 01:40:53][%emt 00:00:07]} 
2.Ne2 {[%clk 01:41:21][%emt 00:00:06]} 2...Nc6 {[%clk 01:40:09][%emt 00:01:13]} 
3.d4 {[%clk 01:41:42][%emt 00:00:09]} 3...exd4 {[%clk 01:40:33][%emt 00:00:06]} 
4.Nxd4 {[%clk 01:42:08][%emt 00:00:04]} 4...Nf6 {[%clk 01:41:00][%emt 00:00:03]} 
5.Nxc6 {[%clk 01:42:29][%emt 00:00:10]} 5...bxc6 {[%clk 01:41:26][%emt
00:00:04]} 6.e5 {[%clk 01:42:52][%emt 00:00:06]} 6...Qe7 {[%clk 01:41:52][%emt
00:00:04]} 7.Qe2 {[%clk 01:43:13][%emt 00:00:09]} 7...Nd5 {[%clk 01:42:13][%emt
00:00:10]} 8.h4 {[%clk 01:42:59][%emt 00:00:44]} 8...Qe6 {[%clk 01:41:06][%emt
00:01:37]} 9.Nd2 {[%clk 01:42:49][%emt 00:00:40]} 9...a5 {[%clk 01:39:14][%emt
00:02:22]} 10.g3 {[%clk 01:38:58][%emt 00:04:21]} 10...Nb4 {[%clk 01:29:41][%emt
00:10:02]} 11.Nf3 {[%clk 01:38:27][%emt 00:01:00]} 11...Ba6 {[%clk
01:29:52][%emt 00:00:20]} 12.c4 {[%clk 01:38:15][%emt 00:00:43]} 12...Qg6 
{[%clk 01:29:50][%emt 00:00:31]} 13.Kd1 {[%clk 01:37:08][%emt 00:01:38]} 
13...c5 {[%clk 01:29:05][%emt 00:01:14]} 14.a3 {[%clk 01:36:22][%emt 00:01:16]} 
14...Nc6 {[%clk 01:26:54][%emt 00:02:42]} 15.h5 {[%clk 01:36:27][%emt 00:00:24]} 
15...Qe6 {[%clk 01:26:05][%emt 00:01:19]} 16.Bd2 {[%clk 01:34:46][%emt
00:02:11]} 16...Be7 {[%clk 01:15:25][%emt 00:11:11]} 17.Bc3 {[%clk
01:30:04][%emt 00:05:11]} 17...O-O {[%clk 01:09:38][%emt 00:06:17]} 18.Qe4 
{[%clk 01:24:23][%emt 00:06:10]} 18...Rad8 {[%clk 00:54:14][%emt 00:15:55]} 
19.Bd3 {[%clk 01:10:31][%emt 00:14:22]} 19...f5 {[%clk 00:51:22][%emt 00:03:23]} 
20.exf6 {[%clk 00:51:13][%emt 00:19:48]} 20...Qxe4 {[%clk 00:51:29][%emt
00:00:23]} 21.Bxe4 {[%clk 00:51:39][%emt 00:00:04]} 21...Bxf6 {[%clk
00:51:54][%emt 00:00:05]} 22.Bd5+ {[%clk 00:51:31][%emt 00:00:38]} 22...Kh8 
{[%clk 00:52:19][%emt 00:00:05]} 23.Nh4 {[%clk 00:50:13][%emt 00:01:48]} 
23...Ne7 {[%clk 00:43:16][%emt 00:09:33]} 24.Ng6+ {[%clk 00:49:46][%emt
00:00:57]} 24...Nxg6 {[%clk 00:43:39][%emt 00:00:07]} 25.hxg6 {[%clk
00:50:11][%emt 00:00:04]} 25...h6 {[%clk 00:44:07][%emt 00:00:02]} 26.Bf7 
{[%clk 00:37:48][%emt 00:12:54]} 26...Bxc3 {[%clk 00:39:18][%emt 00:05:18]} 
27.bxc3 {[%clk 00:38:16][%emt 00:00:02]} 27...d5 {[%clk 00:38:07][%emt
00:01:42]} 28.Kc2 {[%clk 00:34:04][%emt 00:04:41]} 28...Bxc4 {[%clk
00:34:15][%emt 00:04:22]} 29.Rae1 {[%clk 00:33:20][%emt 00:01:15]} 29...Rd7 
{[%clk 00:19:49][%emt 00:14:56]} 30.Re8 {[%clk 00:17:35][%emt 00:16:15]} 
30...Rxe8 {[%clk 00:18:10][%emt 00:02:09]} 31.Bxe8 {[%clk 00:18:03][%emt
00:00:01]} 31...Re7 {[%clk 00:06:47][%emt 00:11:53]} 32.Bf7 {[%clk
00:18:28][%emt 00:00:05]} 32...Re2+ {[%clk 00:06:24][%emt 00:00:53]} 33.Kc1 
{[%clk 00:11:25][%emt 00:07:34]} 33...Bd3 {[%clk 00:05:44][%emt 00:01:10]} 
34.Rh5 {[%clk 00:10:56][%emt 00:00:58]} 34...c6 {[%clk 00:04:47][%emt 00:01:27]} 
35.f4 {[%clk 00:11:23][%emt 00:00:03]} 35...Rc2+ {[%clk 00:03:44][%emt
00:01:33]} 36.Kd1 {[%clk 00:11:52][%emt 00:00:01]} 36...Be2+ {[%clk
00:04:04][%emt 00:00:10]} 37.Kxc2 {[%clk 00:12:20][%emt 00:00:02]} 37...Bxh5 
{[%clk 00:04:30][%emt 00:00:04]} 38.f5 {[%clk 00:02:01][%emt 00:10:49]} 
38...Bf3 {[%clk 00:04:42][%emt 00:00:18]} 39.Be6 {[%clk 00:02:19][%emt
00:00:12]} 39...Be4+ {[%clk 00:05:08][%emt 00:00:04]} 40.Kd2 {[%clk
00:02:44][%emt 00:00:06]} 40...d4 {[%clk 00:04:19][%emt 00:01:19]} 41.g4 {[%clk
00:34:06][%emt 00:19:07]} 41...Bb1 {[%clk 00:52:22][%emt 00:02:27]} 42.c4 
{[%clk 00:32:02][%emt 00:02:34]} 42...Be4 {[%clk 00:39:50][%emt 00:13:02]} 
43.Ke2 {[%clk 00:32:26][%emt 00:00:06]} 43...Bg2 {[%clk 00:39:56][%emt
00:00:25]} 44.Kf2 {[%clk 00:26:22][%emt 00:06:33]} 44...d3 {[%clk 00:24:17][%emt
00:16:09]} 45.g5 {[%clk 00:11:02][%emt 00:15:50]} 45...d2 {[%clk 00:02:55][%emt
00:21:53]} 46.Ke2 {[%clk 00:11:27][%emt 00:00:05]} 46...hxg5 {[%clk
00:03:08][%emt 00:00:17]} 47.Kxd2 {[%clk 00:11:50][%emt 00:00:06]} 47...a4 
{[%clk 00:03:31][%emt 00:00:07]} 48.Ke3 {[%clk 00:11:45][%emt 00:00:34]} 
48...Bh1 {[%clk 00:02:26][%emt 00:01:35]} 49.Kf2 {[%clk 00:10:53][%emt
00:01:23]} 49...g4 {[%clk 00:01:22][%emt 00:01:34]} 50.Kg3 {[%clk 00:11:08][%emt
00:00:15]} 50...Bf3 {[%clk 00:01:45] [%emt 00:00:07]} 51.Kf4 {[%clk 00:11:07]
[%emt 00:00:31]} 51...Be2 {[%clk 00:01:27] [%emt 00:00:48]} 52.Kg3 {[%clk
00:02:16][%emt 00:09:21]} 52...Bf3 {[%clk 00:01:45][%emt 00:00:07]} 53.Kf4 
{[%clk 00:11:07][%emt 00:00:31]} 53...Be2 {[%clk 00:01:27][%emt 00:00:48]} 
54.Ke5 {[%clk 00:01:27][%emt 00:00:55]} 54...Bd3 {[%clk 00:02:31][%emt
00:00:07]} 55.f6 {[%clk 00:01:44][%emt 00:00:13]} 55...Bxg6 {[%clk
00:02:58][%emt 00:00:03]} 56.Bxg4 {[%clk 00:02:09][%emt 00:00:05]} 56...gxf6+ 
{[%clk 00:03:13][%emt 00:00:15]} 57.Kxf6 {[%clk 00:02:22][%emt 00:00:18]} 
57...Bd3 {[%clk 00:03:19][%emt 00:00:24]} 58.Be6 {[%clk 00:02:25][%emt
00:00:26]} 58...Bf1 {[%clk 00:03:35][%emt 00:00:14]} 59.Ke7 {[%clk
00:01:42][%emt 00:01:13]} 59...Kg7 {[%clk 00:04:00][%emt 00:00:06]} 60.Kd6 
{[%clk 00:01:57] [%emt 00:00:15]} 60...Kf6 {[%clk 00:04:26] [%emt 00:00:04]} 
61.Bg8 {[%clk 00:02:18][%emt 00:00:08]} 61...Kg7 {[%clk 00:04:48][%emt
00:00:09]} 62.Be6 {[%clk 00:02:43][%emt 00:00:04]} 62...Kf6 {[%clk
00:04:26][%emt 00:00:04]} 63.Bd7 {[%clk 00:02:47][%emt 00:00:26]} 63...Bxc4 
{[%clk 00:05:38][%emt 00:00:08]} 64.Bxc6 {[%clk 00:03:10][%emt 00:00:06]} 
64...Bb3 {[%clk 00:06:03][%emt 00:00:04]} 65.Kxc5 {[%clk 00:03:36][%emt
00:00:05]} 65...Ke7 {[%clk 00:06:30][%emt 00:00:03]} 66.Kb4 {[%clk
00:04:00][%emt 00:00:06]} 66...Kd6 {[%clk 00:06:56][%emt 00:00:04]} 67.Bxa4 
{[%clk 00:04:27][%emt 00:00:03]} 67...Bxa4 {[%clk 00:07:19][%emt 00:00:07]} 
68.Kxa4 {[%clk 00:04:54][%emt 00:00:04]} ( 68.Kxa4 {[%clk 00:04:54] [%emt
00:00:04]} 68...Ke5 {Chopra Aryan 2634 - Matthias Bluebaum 2668, FIDE Grand
Swiss 2023, Villa Marina, Douglas, Isle of Man, Isle Of Man (8.28), 2023.11.02} 
) 1/2-1/2

[Event "FIDE Grand Swiss 2023"]
[Site "Villa Marina, Douglas, Isle of Man"]
[Date "2023.11.02"]
[Round "8.32"]
[White "Tari, Aryan"]
[Black "Narayanan.S.L"]
[Result "1/2-1/2"]
[WhiteElo "2619"]
[BlackElo "2651"]
[EventDate "2023.10.25"]
[ECO "A33"]
[PlyCount "60"]
[BlackClock "01:08:38"]
[BlackFideId "5058422"]
[TimeControl "40/100 + 20/50 + 15 + 30s/move"]
[WhiteClock "00:39:28"]
[WhiteFideId "1510045"]

1.c4 {[%clk 01:40:56][%emt 00:00:03]} 1...c5 {[%clk 01:40:39][%emt 00:00:23]} 
2.Nf3 {[%clk 01:41:13][%emt 00:00:13]} 2...Nf6 {[%clk 01:40:53][%emt 00:00:16]} 
3.Nc3 {[%clk 01:41:35][%emt 00:00:08]} 3...Nc6 {[%clk 01:41:17][%emt 00:00:06]} 
4.d4 {[%clk 01:41:46][%emt 00:00:19]} 4...cxd4 {[%clk 01:41:40][%emt 00:00:06]} 
5.Nxd4 {[%clk 01:42:13][%emt 00:00:04]} 5...e6 {[%clk 01:42:03][%emt 00:00:07]} 
6.e4 {[%clk 01:42:30][%emt 00:00:12]} 6...Bc5 {[%clk 01:42:09][%emt 00:00:24]} 
7.Nb3 {[%clk 01:42:51][%emt 00:00:10]} 7...Bb4 {[%clk 01:42:33][%emt 00:00:06]} 
8.Bd3 {[%clk 01:42:59][%emt 00:00:22]} 8...d5 {[%clk 01:42:21][%emt 00:00:41]} 
9.exd5 {[%clk 01:42:24][%emt 00:01:06]} 9...exd5 {[%clk 01:42:46][%emt
00:00:05]} 10.cxd5 {[%clk 01:42:48][%emt 00:00:06]} 10...Qxd5 {[%clk
01:43:03][%emt 00:00:12]} 11.O-O {[%clk 01:41:54][%emt 00:01:24]} 11...Bxc3 
{[%clk 01:43:29][%emt 00:00:04]} 12.bxc3 {[%clk 01:42:16][%emt 00:00:09]} 
12...O-O {[%clk 01:43:54][%emt 00:00:05]} 13.c4 {[%clk 01:41:25][%emt 00:01:21]} 
13...Qd7 {[%clk 01:44:19][%emt 00:00:05]} 14.Bg5 {[%clk 01:32:05][%emt
00:09:50]} 14...Rd8 {[%clk 01:36:34][%emt 00:08:14]} 15.Bxf6 {[%clk
01:26:33][%emt 00:06:03]} 15...gxf6 {[%clk 01:36:57][%emt 00:00:06]} 16.Be4 
{[%clk 01:24:51][%emt 00:02:12]} 16...Qxd1 {[%clk 01:37:02][%emt 00:00:25]} 
17.Rfxd1 {[%clk 01:24:51]} ( 17.Re1 {[%emt 00:00:31]} 17...Qxa1 18.Rxa1 {[%clk
01:24:51]} 18...Bd7 {[%clk 01:27:27] [%emt 00:10:04]} ) 17...Be6 {[%clk
01:27:27][%emt 00:10:35]} 18.Nc5 {[%clk 01:15:13][%emt 00:10:09]} 18...f5 
{[%clk 01:27:41][%emt 00:00:16]} 19.Bf3 {[%clk 00:57:42][%emt 00:18:01]} 
19...Rxd1+ {[%clk 01:21:00][%emt 00:07:10]} 20.Rxd1 {[%clk 00:57:39][%emt
00:00:33]} 20...Bxc4 {[%clk 01:21:20][%emt 00:00:10]} 21.Nxb7 {[%clk
00:57:57][%emt 00:00:13]} 21...Ne5 {[%clk 01:21:40][%emt 00:00:09]} 22.Bd5 
{[%clk 00:56:33][%emt 00:01:55]} 22...Rb8 {[%clk 01:20:13][%emt 00:01:56]} 
23.h3 {[%clk 00:46:02][%emt 00:11:02]} 23...Bxa2 {[%clk 01:14:13][%emt
00:06:30]} 24.Bxa2 {[%clk 00:46:05][%emt 00:00:27]} 24...Rxb7 {[%clk
01:14:37][%emt 00:00:05]} 25.Rd5 {[%clk 00:46:32][%emt 00:00:04]} 25...Re7 
{[%clk 01:12:32][%emt 00:02:35]} 26.f4 {[%clk 00:46:40][%emt 00:00:21]} 
26...Nc6 {[%clk 01:12:32][%emt 00:00:30]} 27.Rxf5 {[%clk 00:46:31][%emt
00:00:40]} 27...Nd4 {[%clk 01:12:49][%emt 00:00:12]} 28.Rg5+ {[%clk
00:46:07][%emt 00:00:55]} 28...Kf8 {[%clk 01:13:11][%emt 00:00:08]} 29.Kh2 
{[%clk 00:42:20][%emt 00:04:17]} 29...Ne2 {[%clk 01:08:23][%emt 00:05:17]} 
30.Rf5 {[%clk 00:40:00][%emt 00:02:50]} 30...Kg7 {[%clk 01:08:38] [%emt
00:00:16]} 1/2-1/2

[Event "FIDE Grand Swiss 2023"]
[Site "Villa Marina, Douglas, Isle of Man"]
[Date "2023.11.02"]
[Round "8.35"]
[White "Rodrigue-Lemieux, Shawn"]
[Black "Van Foreest, Jorden"]
[Result "0-1"]
[WhiteElo "2488"]
[BlackElo "2707"]
[EventDate "2023.10.25"]
[ECO "B51"]
[PlyCount "142"]
[BlackFideId "1039784"]
[TimeControl "40/100 + 20/50 + 15 + 30s/move"]
[WhiteFideId "2620049"]

1.e4 {[%clk 01:40:56][%emt 00:00:02]} 1...c5 {[%clk 01:39:53][%emt 00:01:08]} 
2.Nf3 {[%clk 01:41:18][%emt 00:00:08]} 2...d6 {[%clk 01:39:27][%emt 00:00:55]} 
3.Bb5+ {[%clk 01:41:41][%emt 00:00:08]} 3...Nd7 {[%clk 01:38:57][%emt 00:01:00]} 
4.Ba4 {[%clk 01:41:55][%emt 00:00:16]} 4...Nf6 {[%clk 01:38:00][%emt 00:01:26]} 
5.O-O {[%clk 01:42:10][%emt 00:00:14]} 5...a6 {[%clk 01:37:12][%emt 00:01:20]} 
6.c4 {[%clk 01:42:30][%emt 00:00:09]} 6...e6 {[%clk 01:36:43][%emt 00:00:59]} 
7.Nc3 {[%clk 01:42:25][%emt 00:00:35]} 7...Be7 {[%clk 01:36:16][%emt 00:00:56]} 
8.d4 {[%clk 01:42:06][%emt 00:00:51]} 8...cxd4 {[%clk 01:35:58][%emt 00:00:48]} 
9.Nxd4 {[%clk 01:42:28][%emt 00:00:08]} 9...O-O {[%clk 01:35:42][%emt 00:00:45]} 
10.Re1 {[%clk 01:39:45][%emt 00:03:13]} 10...Qc7 {[%clk 01:35:15][%emt
00:00:58]} 11.Qe2 {[%clk 01:39:18][%emt 00:00:57]} 11...h6 {[%clk 01:34:59][%emt
00:00:45]} 12.h3 {[%clk 01:25:27][%emt 00:14:21]} 12...Kh8 {[%clk 01:34:10][%emt
00:01:19]} 13.Nf3 {[%clk 01:14:15][%emt 00:11:42]} 13...b6 {[%clk 01:29:56][%emt
00:04:45]} 14.Bxd7 {[%clk 01:03:05][%emt 00:11:40]} 14...Nxd7 {[%clk
01:27:41][%emt 00:02:44]} 15.Bf4 {[%clk 01:00:46][%emt 00:02:50]} 15...Bb7 
{[%clk 01:25:11][%emt 00:03:00]} 16.Rac1 {[%clk 00:56:11][%emt 00:05:04]} 
16...Rac8 {[%clk 01:20:23][%emt 00:05:19]} 17.b3 {[%clk 00:55:09][%emt
00:01:32]} 17...Kg8 {[%clk 01:16:26][%emt 00:04:26]} 18.Red1 {[%clk
00:50:10][%emt 00:05:29]} 18...Rfd8 {[%clk 01:09:58][%emt 00:06:59]} 19.Nd4 
{[%clk 00:44:14][%emt 00:06:26]} 19...Ne5 {[%clk 01:06:46][%emt 00:03:43]} 
20.Be3 {[%clk 00:34:51][%emt 00:09:52]} 20...Bf6 {[%clk 00:58:45][%emt
00:08:30]} 21.Qh5 {[%clk 00:34:53][%emt 00:00:28]} 21...Qe7 {[%clk
00:56:08][%emt 00:03:07]} 22.Qe2 {[%clk 00:32:09][%emt 00:03:15]} 22...Ba8 
{[%clk 00:55:07][%emt 00:01:31]} 23.Nf3 {[%clk 00:24:25][%emt 00:08:13]} 
23...Nxf3+ {[%clk 00:42:07][%emt 00:13:31]} 24.Qxf3 {[%clk 00:24:52][%emt
00:00:03]} 24...b5 {[%clk 00:41:55][%emt 00:00:42]} 25.Bb6 {[%clk 00:24:38][%emt
00:00:44]} 25...Rf8 {[%clk 00:41:50][%emt 00:00:35]} 26.cxb5 {[%clk
00:23:18][%emt 00:01:50]} 26...axb5 {[%clk 00:42:05][%emt 00:00:15]} 27.Bd4 
{[%clk 00:20:57][%emt 00:02:51]} 27...Bg5 {[%clk 00:41:28][%emt 00:01:08]} 
28.Be3 {[%clk 00:20:56][%emt 00:00:30]} 28...b4 {[%clk 00:38:32][%emt 00:03:26]} 
29.Nb5 {[%clk 00:17:19][%emt 00:04:07]} 29...d5 {[%clk 00:30:35][%emt 00:08:27]} 
30.Bxg5 {[%clk 00:10:25][%emt 00:07:24]} 30...Qxg5 {[%clk 00:30:25][%emt
00:00:40]} 31.Rxc8 {[%clk 00:09:26][%emt 00:01:30]} 31...Rxc8 {[%clk
00:30:45][%emt 00:00:09]} 32.exd5 {[%clk 00:07:52][%emt 00:02:04]} 32...Bxd5 
{[%clk 00:30:32][%emt 00:00:43]} 33.Qg4 {[%clk 00:08:17][%emt 00:00:05]} 
33...Rc1 {[%clk 00:28:01][%emt 00:03:01]} 34.Rxc1 {[%clk 00:08:38][%emt
00:00:09]} 34...Qxc1+ {[%clk 00:28:24][%emt 00:00:07]} 35.Kh2 {[%clk
00:09:05][%emt 00:00:03]} 35...Qd2 {[%clk 00:27:26][%emt 00:01:28]} 36.Nc7 
{[%clk 00:03:31][%emt 00:06:04]} 36...Bc6 {[%clk 00:26:16][%emt 00:01:40]} 
37.f3 {[%clk 00:01:13][%emt 00:02:48]} 37...Qd6+ {[%clk 00:19:59][%emt
00:06:47]} 38.Qg3 {[%clk 00:01:41][%emt 00:00:02]} 38...e5 {[%clk 00:20:24][%emt
00:00:05]} 39.Na6 {[%clk 00:01:34][%emt 00:00:37]} 39...Bb5 {[%clk
00:19:42][%emt 00:01:12]} 40.Nxb4 {[%clk 00:01:54][%emt 00:00:10]} 40...Qxb4 
{[%clk 00:20:07][%emt 00:00:05]} 41.Qxe5 {[%clk 00:02:19][%emt 00:00:05]} 
41...Bd7 {[%clk 00:20:09][%emt 00:00:27]} 42.Qd5 {[%clk 00:50:24][%emt
00:02:25]} 42...Be6 {[%emt 00:01:30]} 43.Qd8+ {[%clk 00:50:48]} 43...Kh7 {[%clk
01:09:39][%emt 00:00:06]} 44.Qd3+ {[%clk 00:51:15][%emt 00:00:04]} 44...g6 
{[%clk 01:09:57][%emt 00:00:12]} 45.Qa6 {[%clk 00:50:27][%emt 00:01:18]} 
45...Qd2 {[%clk 01:09:40][%emt 00:00:47]} 46.Qa7 {[%clk 00:50:28][%emt
00:00:29]} 46...Kg7 {[%clk 01:09:17][%emt 00:00:53]} 47.Qa4 {[%clk
00:50:29][%emt 00:00:29]} 47...h5 {[%clk 01:07:20][%emt 00:02:27]} 48.Qa6 
{[%clk 00:49:51][%emt 00:01:07]} 48...h4 {[%clk 01:04:56][%emt 00:02:54]} 
49.Qa4 {[%clk 00:49:25][%emt 00:00:57]} 49...g5 {[%clk 01:04:47][%emt 00:00:39]} 
50.Qb5 {[%clk 00:49:32][%emt 00:00:23]} 50...Kf6 {[%clk 01:04:45][%emt
00:00:31]} 51.Qa6 {[%clk 00:48:59][%emt 00:01:04]} 51...Ke5 {[%clk
01:01:13][%emt 00:04:01]} 52.Qb5+ {[%clk 00:48:01][%emt 00:01:29]} 52...Qd5 
{[%clk 00:57:50][%emt 00:03:53]} 53.Qb8+ {[%clk 00:47:05][%emt 00:01:26]} 
53...Kf5 {[%clk 00:56:58][%emt 00:01:21]} 54.Qa7 {[%clk 00:46:48][%emt
00:00:47]} 54...Qe5+ {[%clk 00:57:08][%emt 00:00:20]} 55.Kh1 {[%clk
00:46:36][%emt 00:00:42]} 55...Kg6 {[%clk 00:55:54][%emt 00:01:44]} 56.Qa6 
{[%clk 00:46:32][%emt 00:00:35]} 56...Kg7 {[%clk 00:56:11][%emt 00:00:13]} 
57.Qa7 {[%clk 00:46:15][%emt 00:00:48]} 57...Qe1+ {[%clk 00:52:35][%emt
00:04:05]} 58.Kh2 {[%clk 00:46:43][%emt 00:00:02]} 58...Bxh3 {[%clk
00:50:01][%emt 00:03:04]} 59.Qd4+ {[%clk 00:44:59][%emt 00:02:13]} 59...Kg6 
{[%clk 00:49:17][%emt 00:01:15]} 60.gxh3 {[%clk 00:45:26][%emt 00:00:02]} 
60...Qg3+ {[%clk 00:49:41][%emt 00:00:06]} 61.Kh1 {[%clk 00:45:49][%emt
00:00:07]} 61...Qxh3+ {[%clk 00:50:08][%emt 00:00:04]} 62.Kg1 {[%clk
00:46:15][%emt 00:00:04]} 62...Qg3+ {[%clk 00:50:34][%emt 00:00:04]} 63.Kh1 
{[%clk 00:44:57][%emt 00:01:48]} 63...Qxf3+ {[%clk 00:50:52][%emt 00:00:12]} 
64.Kg1 {[%clk 00:44:18][%emt 00:01:08]} 64...h3 {[%clk 00:49:40][%emt 00:01:42]} 
65.Qd6+ {[%clk 00:43:28][%emt 00:01:21]} 65...Kh5 {[%clk 00:48:51][%emt
00:01:19]} 66.Qd2 {[%clk 00:43:40][%emt 00:00:17]} 66...g4 {[%clk 00:47:50][%emt
00:01:32]} 67.Kh2 {[%clk 00:44:00][%emt 00:00:09]} 67...Qe4 {[%clk
00:47:15][%emt 00:01:06]} 68.Qf2 {[%clk 00:40:00][%emt 00:04:30]} 68...f5 
{[%clk 00:47:20][%emt 00:00:25]} 69.Qb2 {[%clk 00:38:43][%emt 00:01:47]} 
69...Kg6 {[%clk 00:45:10][%emt 00:02:40]} 70.Kg3 {[%clk 00:37:41][%emt
00:01:32]} 70...f4+ {[%clk 00:44:52][%emt 00:00:48]} 71.Kh2 {[%clk
00:37:59][%emt 00:00:12]} 71...Kf5 {[%clk 00:44:42] [%emt 00:00:39]} 0-1